[Event "European Online Club-ch-E 2021"]
[Site "Online"]
[Date "2021.03.27"]
[Round "1.11"]
[White "Steinberg, Nitzan"]
[Black "Stefanou, Dimitrios"]
[Result "1-0"]
[ECO "C97"]
[WhiteElo "2553"]
[BlackElo "2099"]
[Annotator "ChessBase"]
[PlyCount "105"]
[EventDate "2021.03.27"]
[EventType "team-tourn"]
[EventCountry "NET"]
[SourceTitle "playchess.com"]
[Source "ChessBase"]
[SourceQuality "1"]
[TimeControl "900+5"]

1. e4 {[%emt 0:00:00]} e5 {[%emt 0:00:07]} 2. Nf3 {[%emt 0:00:02]} Nc6 {[%emt 0:00:04]} 3. Bb5 {[%emt 0:00:02]} a6 {[%emt 0:00:03]} 4. Ba4 {[%emt 0:00:02]} Nf6 {[%emt 0:00:03]} 5. O-O {[%emt 0:00:02]} Be7 {[%emt 0:00:01]} 6. Re1 {[%emt 0:00:02]} b5 {[%emt 0:00:03]} 7. Bb3 {[%emt 0:00:02]} d6 {[%emt 0:00:02]} 8. c3 {[%emt 0:00:01]} O-O {[%emt 0:00:02]} 9. h3 {[%emt 0:00:02]} Na5 {[%emt 0:00:02]} 10. Bc2 {[%emt 0:00:02]} c5 {[%emt 0:00:02]} 11. d4 {[%emt 0:00:02]} Qc7 {[%emt 0:00:03]} 12. d5 {[%emt 0:00:01]} Bd7 {[%emt 0:00:46]} 13. b3 {[%emt 0:00:04]} Ne8 {[%emt 0:01:07]} 14. Nbd2 {[%emt 0:00:12]} g6 {[%emt 0:00:47]} 15. Nf1 {[%emt 0:00:03]} Ng7 {[%emt 0:00:03]} 16. Ng3 {[%emt 0:00:47]} Nb7 {[%emt 0:00:34]} 17. Nh2 {[%emt 0:00:13]} Nd8 {[%emt 0:02:23]} 18. a4 {[%emt 0:00:50]} Rb8 {[%emt 0:03:30]} 19. axb5 {[%emt 0:00:26]} axb5 {[%emt 0:00:02]} 20. b4 {[%emt 0:00:52]} c4 {[%emt 0:01:57]} 21. Be3 {[%emt 0:00:38]} f6 {[%emt 0:00:19]} 22. Qf3 {[%emt 0:02:03]} Nf7 {[%emt 0:01:43]} 23. Ra7 {[%emt 0:00:10]} Rb7 {[%emt 0:00:05]} 24. Rea1 {[%emt 0:00:04]} h5 {[%emt 0:00:38]} 25. Rxb7 {[%emt 0:02:27]} Qxb7 {[%emt 0:00:00]} 26. Ra7 {[%emt 0:00:04]} Qc8 {[%emt 0:00:06]} 27. h4 {[%emt 0:00:16]} Bd8 {[%emt 0:00:47]} 28. Qd1 {[%emt 0:00:27]} f5 {[%emt 0:00:56]} 29. exf5 {[%emt 0:00:23]} Nxf5 {[%emt 0:00:03]} 30. Nxf5 {[%emt 0:01:38]} Bxf5 {[%emt 0:00:03]} 31. Nf3 {[%emt 0:00:57]} e4 {[%emt 0:00:39]} 32. Ng5 {[%emt 0:00:22]} Nxg5 {[%emt 0:00:07]} 33. hxg5 {[%emt 0:00:02]} Rf7 {[%emt 0:00:07]} 34. Rxf7 {[%emt 0:00:17]} Kxf7 {[%emt 0:00:03]} 35. Qd4 {[%emt 0:00:04]} Qa8 {[%emt 0:00:24]} 36. Bxe4 {[%emt 0:00:20]} Bxe4 {[%emt 0:00:07]} 37. Qxe4 {[%emt 0:00:01]} Qa1+ {[%emt 0:00:01]} 38. Kh2 {[%emt 0:00:01]} Qxc3 {[%emt 0:00:02]} 39. Qe6+ {[%emt 0:00:36]} Kf8 {[%emt 0:00:04]} 40. Bf4 {[%emt 0:00:28]} Be7 {[%emt 0:00:13]} 41. Qxg6 {[%emt 0:00:23]} Qg7 {[%emt 0:00:04]} 42. Qxh5 {[%emt 0:00:36]} c3 {[%emt 0:00:04]} 43. g6 {[%emt 0:00:06]} Kg8 {[%emt 0:00:07]} 44. Kg3 {[%emt 0:01:02]} c2 {[%emt 0:00:05]} 45. f3 {[%emt 0:00:24]} Bf6 {[%emt 0:00:05]} 46. Qf5 {[%emt 0:00:10]} Be5 {[%emt 0:00:07]} 47. Qxc2 {[%emt 0:00:14]} Bxf4+ {[%emt 0:00:05]} 48. Kxf4 {[%emt 0:00:03]} Qe5+ {[%emt 0:00:03]} 49. Kg4 {[%emt 0:00:02]} Qxd5 {[%emt 0:00:02]} 50. f4 {[%emt 0:00:17]} Qc4 {[%emt 0:00:07]} 51. Qxc4+ {[%emt 0:00:10]} bxc4 {[%emt 0:00:02]} 52. Kf3 {[%emt 0:00:01]} d5 {[%emt 0:00:03]} 53. Ke3 {[%emt 0:00:01]} 1-0

[Event "European Online Club-ch-E 2021"]
[Site "Online"]
[Date "2021.03.27"]
[Round "1.12"]
[White "Koutlas, Nikolaos"]
[Black "Huzman, Alexander"]
[Result "0-1"]
[ECO "A11"]
[WhiteElo "2078"]
[BlackElo "2561"]
[Annotator "ChessBase"]
[PlyCount "102"]
[EventDate "2021.03.27"]
[EventType "team-tourn"]
[EventCountry "NET"]
[SourceTitle "playchess.com"]
[Source "ChessBase"]
[SourceQuality "1"]
[TimeControl "900+5"]

1. c4 {[%emt 0:00:00]} e6 {[%emt 0:00:07]} 2. Nf3 {[%emt 0:00:02]} d5 {[%emt 0:00:04]} 3. e3 {[%emt 0:00:03]} Nf6 {[%emt 0:00:03]} 4. Nc3 {[%emt 0:00:02]} c6 {[%emt 0:00:07]} 5. b3 {[%emt 0:00:06]} Nbd7 {[%emt 0:00:04]} 6. Bb2 {[%emt 0:00:25]} Bd6 {[%emt 0:00:03]} 7. Qc2 {[%emt 0:00:35]} O-O {[%emt 0:00:24]} 8. h3 {[%emt 0:01:37]} e5 {[%emt 0:00:38]} 9. cxd5 {[%emt 0:00:23]} Nxd5 {[%emt 0:00:04]} 10. a3 {[%emt 0:00:21]} f5 {[%emt 0:00:46]} 11. g4 {[%emt 0:02:13]} Nxc3 {[%emt 0:02:26]} 12. Bxc3 {[%emt 0:00:39]} Qf6 {[%emt 0:01:50]} 13. Bc4+ {[%emt 0:01:50]} Kh8 {[%emt 0:00:05]} 14. b4 {[%emt 0:02:17]} Nb6 {[%emt 0:01:28]} 15. Bb3 {[%emt 0:00:50]} Qe7 {[%emt 0:00:46]} 16. g5 {[%emt 0:01:54]} Nd5 {[%emt 0:00:44]} 17. Bb2 {[%emt 0:00:36]} a5 {[%emt 0:00:15]} 18. b5 {[%emt 0:00:16]} Bd7 {[%emt 0:00:03]} 19. h4 {[%emt 0:00:10]} Rac8 {[%emt 0:00:24]} 20. g6 {[%emt 0:00:28]} h6 {[%emt 0:00:59]} 21. b6 {[%emt 0:01:04]} Rf6 {[%emt 0:01:10]} 22. h5 {[%emt 0:00:38]} Nxb6 {[%emt 0:00:10]} 23. O-O-O {[%emt 0:00:13]} Bxa3 {[%emt 0:00:13]} 24. Kb1 {[%emt 0:00:08]} Bxb2 {[%emt 0:00:05]} 25. Qxb2 {[%emt 0:00:01]} e4 {[%emt 0:00:45]} 26. Ng5 {[%emt 0:00:12]} Be8 {[%emt 0:00:10]} 27. Nf7+ {[%emt 0:00:03]} Bxf7 {[%emt 0:00:02]} 28. Bxf7 {[%emt 0:00:01]} Nd5 {[%emt 0:00:05]} 29. Rc1 {[%emt 0:00:08]} Rd8 {[%emt 0:00:07]} 30. Rc4 {[%emt 0:00:04]} Rxf7 {[%emt 0:00:13]} 31. gxf7 {[%emt 0:00:02]} Qxf7 {[%emt 0:00:01]} 32. Rc5 {[%emt 0:00:10]} Nb4 {[%emt 0:00:47]} 33. Rg1 {[%emt 0:00:06]} Rd7 {[%emt 0:00:03]} 34. Rg6 {[%emt 0:00:03]} Nd3 {[%emt 0:00:03]} 35. Rxh6+ {[%emt 0:00:08]} Kg8 {[%emt 0:00:02]} 36. Rxa5 {[%emt 0:00:02]} Nxb2 {[%emt 0:00:11]} 37. Ra8+ {[%emt 0:00:01]} Qf8 {[%emt 0:00:02]} 38. Rh8+ {[%emt 0:00:02]} Kxh8 {[%emt 0:00:02]} 39. Rxf8+ {[%emt 0:00:01]} Kh7 {[%emt 0:00:02]} 40. Kxb2 {[%emt 0:00:02]} Rxd2+ {[%emt 0:00:02]} 41. Kc3 {[%emt 0:00:01]} Rxf2 {[%emt 0:00:02]} 42. Rf7 {[%emt 0:00:02]} b5 {[%emt 0:00:02]} 43. Rc7 {[%emt 0:00:02]} Kh6 {[%emt 0:00:07]} 44. Rxc6+ {[%emt 0:00:02]} Kxh5 {[%emt 0:00:02]} 45. Rc5 {[%emt 0:00:01]} Kg4 {[%emt 0:00:04]} 46. Rxb5 {[%emt 0:00:03]} Rf1 {[%emt 0:00:06]} 47. Kd4 {[%emt 0:00:17]} Rd1+ {[%emt 0:00:05]} 48. Ke5 {[%emt 0:00:03]} Rd3 {[%emt 0:00:01]} 49. Rb6 {[%emt 0:00:15]} g5 {[%emt 0:00:03]} 50. Rf6 {[%emt 0:00:02]} Rxe3 {[%emt 0:00:05]} 51. Rxf5 {[%emt 0:00:02]} Rf3 {[%emt 0:00:04]} 0-1

[Event "European Online Club-ch-E 2021"]
[Site "Online"]
[Date "2021.03.27"]
[Round "1.13"]
[White "Chatalbashev, Boris"]
[Black "Dedebas, Emre Emin"]
[Result "1-0"]
[ECO "D21"]
[WhiteElo "2530"]
[BlackElo "2335"]
[Annotator "ChessBase"]
[PlyCount "61"]
[EventDate "2021.03.27"]
[EventType "team-tourn"]
[EventCountry "NET"]
[SourceTitle "playchess.com"]
[Source "ChessBase"]
[SourceQuality "1"]
[TimeControl "900+5"]

1. d4 {[%emt 0:00:00]} d5 {[%emt 0:00:04]} 2. c4 {[%emt 0:00:03]} dxc4 {[%emt 0:00:07]} 3. Nf3 {[%emt 0:00:02]} c5 {[%emt 0:00:04]} 4. e3 {[%emt 0:00:03]} cxd4 {[%emt 0:00:01]} 5. Bxc4 {[%emt 0:00:04]} Qc7 {[%emt 0:00:33]} 6. Bb3 {[%emt 0:00:04]} dxe3 {[%emt 0:00:22]} 7. Bxe3 {[%emt 0:00:02]} Nc6 {[%emt 0:00:10]} 8. Nc3 {[%emt 0:00:13]} Nf6 {[%emt 0:01:49]} 9. O-O {[%emt 0:00:04]} e6 {[%emt 0:01:06]} 10. Nb5 {[%emt 0:00:06]} Qa5 {[%emt 0:00:24]} 11. Nd6+ {[%emt 0:00:05]} Bxd6 {[%emt 0:00:04]} 12. Qxd6 {[%emt 0:00:04]} Ne4 {[%emt 0:00:19]} 13. Qf4 {[%emt 0:00:05]} Qf5 {[%emt 0:00:37]} 14. Qh4 {[%emt 0:00:03]} Nf6 {[%emt 0:00:07]} 15. h3 {[%emt 0:02:04]} O-O {[%emt 0:01:40]} 16. Rac1 {[%emt 0:00:07]} Qh5 {[%emt 0:01:34]} 17. Qg3 {[%emt 0:04:02]} Qg6 {[%emt 0:02:50]} 18. Qh2 {[%emt 0:00:06]} e5 {[%emt 0:00:55]} 19. Rc5 {[%emt 0:02:32]} Nd7 {[%emt 0:00:37]} 20. Rd5 {[%emt 0:00:10]} e4 {[%emt 0:01:37]} 21. Nd2 {[%emt 0:02:30]} h6 {[%emt 0:00:28]} 22. Rd6 {[%emt 0:01:47]} Nf6 {[%emt 0:00:19]} 23. Nc4 {[%emt 0:00:11]} Be6 {[%emt 0:00:18]} 24. Rfd1 {[%emt 0:00:04]} Rfe8 {[%emt 0:00:09]} 25. Kh1 {[%emt 0:01:13]} Qh5 {[%emt 0:00:20]} 26. Qg3 {[%emt 0:00:06]} Bxc4 {[%emt 0:00:22]} 27. Bxc4 {[%emt 0:00:03]} Ne5 {[%emt 0:00:01]} 28. Bb5 {[%emt 0:00:16]} Rf8 {[%emt 0:00:08]} 29. R1d2 {[%emt 0:00:23]} Nd3 {[%emt 0:00:04]} 30. Bxd3 {[%emt 0:00:10]} exd3 {[%emt 0:00:01]} 31. Rxf6 {[%emt 0:00:04]} 1-0

[Event "European Online Club-ch-E 2021"]
[Site "Online"]
[Date "2021.03.27"]
[Round "1.14"]
[White "Angun, Batu"]
[Black "Moreno Trujillo, Alejandro"]
[Result "1/2-1/2"]
[ECO "D46"]
[WhiteElo "2326"]
[BlackElo "2483"]
[Annotator "ChessBase"]
[PlyCount "127"]
[EventDate "2021.03.27"]
[EventType "team-tourn"]
[EventCountry "NET"]
[SourceTitle "playchess.com"]
[Source "ChessBase"]
[SourceQuality "1"]
[TimeControl "900+5"]

1. d4 {[%emt 0:00:00]} d5 {[%emt 0:00:06]} 2. c4 {[%emt 0:00:03]} c6 {[%emt 0:00:06]} 3. Nf3 {[%emt 0:00:03]} Nf6 {[%emt 0:00:04]} 4. Nc3 {[%emt 0:00:06]} e6 {[%emt 0:00:01]} 5. e3 {[%emt 0:00:04]} Nbd7 {[%emt 0:00:03]} 6. Qc2 {[%emt 0:00:03]} Bd6 {[%emt 0:00:04]} 7. Bd3 {[%emt 0:00:04]} O-O {[%emt 0:00:24]} 8. O-O {[%emt 0:00:03]} Qe7 {[%emt 0:00:10]} 9. cxd5 {[%emt 0:00:43]} exd5 {[%emt 0:00:22]} 10. Re1 {[%emt 0:01:01]} Qd8 {[%emt 0:02:56]} 11. a3 {[%emt 0:01:52]} a5 {[%emt 0:00:05]} 12. Rb1 {[%emt 0:00:04]} Nb6 {[%emt 0:00:20]} 13. e4 {[%emt 0:00:42]} dxe4 {[%emt 0:00:04]} 14. Nxe4 {[%emt 0:00:04]} Nxe4 {[%emt 0:00:30]} 15. Bxe4 {[%emt 0:00:03]} h6 {[%emt 0:00:03]} 16. Ne5 {[%emt 0:00:42]} Be6 {[%emt 0:00:20]} 17. Bf4 {[%emt 0:01:14]} Nd5 {[%emt 0:00:43]} 18. Bg3 {[%emt 0:00:08]} Re8 {[%emt 0:00:27]} 19. Bh7+ {[%emt 0:00:58]} Kf8 {[%emt 0:01:06]} 20. Rbd1 {[%emt 0:00:07]} a4 {[%emt 0:01:29]} 21. Rd3 {[%emt 0:02:06]} Nf6 {[%emt 0:01:11]} 22. Rde3 {[%emt 0:00:37]} Re7 {[%emt 0:03:12]} 23. Bh4 {[%emt 0:01:47]} g5 {[%emt 0:00:09]} 24. Bg3 {[%emt 0:00:03]} Kg7 {[%emt 0:00:02]} 25. Bd3 {[%emt 0:00:15]} Nd5 {[%emt 0:00:41]} 26. R3e2 {[%emt 0:00:13]} Bxe5 {[%emt 0:00:32]} 27. Bxe5+ {[%emt 0:00:13]} f6 {[%emt 0:00:02]} 28. Bg3 {[%emt 0:00:06]} Bf7 {[%emt 0:00:06]} 29. h4 {[%emt 0:00:24]} Rxe2 {[%emt 0:00:03]} 30. Qxe2 {[%emt 0:00:09]} Qe8 {[%emt 0:00:18]} 31. Qd1 {[%emt 0:00:05]} Qd7 {[%emt 0:00:10]} 32. Bc2 {[%emt 0:00:10]} Bg6 {[%emt 0:00:20]} 33. Bxa4 {[%emt 0:00:14]} Re8 {[%emt 0:00:02]} 34. Rxe8 {[%emt 0:00:12]} Qxe8 {[%emt 0:00:02]} 35. Bb3 {[%emt 0:00:04]} Qe4 {[%emt 0:00:05]} 36. hxg5 {[%emt 0:00:06]} hxg5 {[%emt 0:00:02]} 37. f3 {[%emt 0:01:07]} Qe3+ {[%emt 0:00:04]} 38. Bf2 {[%emt 0:00:05]} Qe7 {[%emt 0:00:03]} 39. Bxd5 {[%emt 0:00:07]} cxd5 {[%emt 0:00:03]} 40. Qb3 {[%emt 0:00:07]} Qd7 {[%emt 0:00:02]} 41. Qb6 {[%emt 0:00:05]} Bd3 {[%emt 0:00:17]} 42. b4 {[%emt 0:00:12]} Bb5 {[%emt 0:00:06]} 43. g4 {[%emt 0:00:15]} Bc6 {[%emt 0:00:08]} 44. Kg2 {[%emt 0:00:07]} Kg6 {[%emt 0:00:05]} 45. Qc5 {[%emt 0:00:05]} Kf7 {[%emt 0:00:07]} 46. Bg3 {[%emt 0:00:05]} Kg7 {[%emt 0:00:06]} 47. Qd6 {[%emt 0:00:14]} Qxd6 {[%emt 0:00:03]} 48. Bxd6 {[%emt 0:00:03]} Ba4 {[%emt 0:00:02]} 49. Bc7 {[%emt 0:00:06]} Kf7 {[%emt 0:00:02]} 50. Kf2 {[%emt 0:00:05]} Ke6 {[%emt 0:00:02]} 51. Ke3 {[%emt 0:00:02]} b5 {[%emt 0:00:04]} 52. Kd2 {[%emt 0:00:06]} Bb3 {[%emt 0:00:03]} 53. Bd8 {[%emt 0:00:03]} Ba4 {[%emt 0:00:04]} 54. Ke3 {[%emt 0:00:05]} Bb3 {[%emt 0:00:02]} 55. f4 {[%emt 0:00:06]} gxf4+ {[%emt 0:00:02]} 56. Kxf4 {[%emt 0:00:02]} Bd1 {[%emt 0:00:02]} 57. g5 {[%emt 0:00:05]} fxg5+ {[%emt 0:00:01]} 58. Bxg5 {[%emt 0:00:03]} Ba4 {[%emt 0:00:04]} 59. Bd8 {[%emt 0:00:05]} Bb3 {[%emt 0:00:01]} 60. Ba5 {[%emt 0:00:03]} Ba4 {[%emt 0:00:02]} 61. Bb6 {[%emt 0:00:02]} Bb3 {[%emt 0:00:02]} 62. Ba5 {[%emt 0:00:02]} Ba4 {[%emt 0:00:01]} 63. Bb6 {[%emt 0:00:02]} Bb3 {[%emt 0:00:02]} 64. Ba5 {[%emt 0:00:02]} 1/2-1/2

[Event "European Online Club-ch-E 2021"]
[Site "Online"]
[Date "2021.03.27"]
[Round "1.15"]
[White "Garrido Dominguez, Jesus"]
[Black "Ozenir, Ekin Baris"]
[Result "1-0"]
[ECO "C08"]
[WhiteElo "2413"]
[BlackElo "2309"]
[Annotator "NA"]
[PlyCount "117"]
[EventDate "2021.03.27"]
[EventType "team-tourn"]
[EventCountry "NET"]
[SourceTitle "playchess.com"]
[Source "ChessBase"]
[SourceQuality "1"]
[TimeControl "900+5"]

1. e4 {[%emt 0:00:00]} e6 {[%emt 0:00:03]} 2. d4 {[%emt 0:00:06]} d5 {[%emt 0:00:05]} 3. Nd2 {[%emt 0:00:02]} c5 {[%emt 0:00:02]} 4. exd5 {[%emt 0:00:05]} exd5 {[%emt 0:00:02]} 5. Ngf3 {[%emt 0:00:07]} Nf6 {[%emt 0:00:13]} 6. Bb5+ {[%emt 0:00:03]} Bd7 {[%emt 0:00:03]} 7. Bxd7+ {[%emt 0:00:03]} Nbxd7 {[%emt 0:00:02]} 8. O-O {[%emt 0:00:03]} Be7 {[%emt 0:00:02]} 9. dxc5 {[%emt 0:00:02]} Nxc5 {[%emt 0:00:01]} 10. Nb3 {[%emt 0:00:04]} Nce4 {[%emt 0:00:06]} 11. Be3 {[%emt 0:00:05]} O-O {[%emt 0:00:17]} 12. h3 {[%emt 0:00:02]} Nd6 {[%emt 0:01:21]} 13. Bd4 {[%emt 0:00:07]} Nc4 {[%emt 0:00:23]} 14. Nbd2 {[%emt 0:00:10]} Ne4 {[%emt 0:00:59]} 15. Nxc4 {[%emt 0:02:11]} dxc4 {[%emt 0:00:05]} 16. Qe2 {[%emt 0:00:02]} Ng5 {[%emt 0:01:27]} 17. Nxg5 {[%emt 0:01:54]} Bxg5 {[%emt 0:00:05]} 18. Qxc4 {[%emt 0:00:04]} Rc8 {[%emt 0:01:14]} 19. Qd3 {[%emt 0:00:04]} Rc6 {[%emt 0:01:40]} 20. Bc3 {[%emt 0:02:07]} Qxd3 {[%emt 0:00:16]} 21. cxd3 {[%emt 0:00:06]} Rd8 {[%emt 0:00:08]} 22. Rad1 {[%emt 0:00:06]} Rcd6 {[%emt 0:00:28]} 23. Rfe1 {[%emt 0:00:06]} h6 {[%emt 0:00:50]} 24. d4 {[%emt 0:00:26]} Bf6 {[%emt 0:00:41]} 25. Re4 {[%emt 0:00:03]} g6 {[%emt 0:01:22]} 26. g4 {[%emt 0:00:24]} R6d7 {[%emt 0:00:39]} 27. Kf1 {[%emt 0:00:06]} Bg7 {[%emt 0:00:14]} 28. Ke2 {[%emt 0:00:12]} f5 {[%emt 0:00:37]} 29. gxf5 {[%emt 0:00:05]} gxf5 {[%emt 0:00:01]} 30. Rf4 {[%emt 0:00:04]} Rd5 {[%emt 0:00:09]} 31. Kd3 {[%emt 0:00:15]} Kf7 {[%emt 0:00:36]} 32. a4 {[%emt 0:00:39]} Bf6 {[%emt 0:00:28]} 33. Kc4 {[%emt 0:00:10]} b6 {[%emt 0:00:33]} 34. Rd3 {[%emt 0:00:32]} a6 {[%emt 0:00:23]} 35. Rdf3 {[%emt 0:01:39]} b5+ {[%emt 0:00:17]} 36. axb5 {[%emt 0:00:03]} axb5+ {[%emt 0:00:01]} 37. Kb3 {[%emt 0:00:03]} Ke6 {[%emt 0:00:07]} 38. Re3+ {[%emt 0:00:21]} Kf7 {[%emt 0:00:05]} 39. Rd3 {[%emt 0:00:13]} Rg8 {[%emt 0:00:28]} 40. Rff3 {[%emt 0:00:11]} Rg2 {[%emt 0:00:26]} 41. Rd1 {[%emt 0:00:33]} Be7 {[%emt 0:00:12]} 42. Ra1 {[%emt 0:00:44]} Rg8 {[%emt 0:00:52]} 43. Ra7 {[%emt 0:00:07]} Kf6 {[%emt 0:00:20]} 44. Ra6+ {[%emt 0:00:06]} Rd6 {[%emt 0:00:03]} 45. d5+ {[%emt 0:00:09]} Kg6 {[%emt 0:00:02]} 46. Rg3+ {[%emt 0:00:19]} Kf7 {[%emt 0:00:08]} 47. Rxg8 {[%emt 0:00:46]} Kxg8 {[%emt 0:00:09]} 48. Rxd6 {[%emt 0:00:08]} Bxd6 {[%emt 0:00:01]} 49. Bb4 {[%emt 0:00:02]} Be5 {[%emt 0:00:06]} 50. Ba3 {[%emt 0:00:18]} Kf7 {[%emt 0:00:05]} 51. Kb4 {[%emt 0:00:03]} Bd4 {[%emt 0:00:04]} 52. f3 {[%emt 0:00:03]} Kf6 {[%emt 0:00:01]} 53. Kxb5 {[%emt 0:00:02]} Ke5 {[%emt 0:00:02]} 54. Kc4 {[%emt 0:00:21]} Bb6 {[%emt 0:00:09]} 55. Bc5 {[%emt 0:00:04]} Bd8 {[%emt 0:00:03]} 56. Be3 {[%emt 0:00:05]} h5 {[%emt 0:00:02]} 57. b4 {[%emt 0:00:05]} f4 {[%emt 0:00:03]} 58. Bd2 {[%emt 0:00:06]} Kf5 {[%emt 0:00:04]} 59. Kc5 {[%emt 0:00:06]} 1-0

[Event "European Online Club-ch-E 2021"]
[Site "Online"]
[Date "2021.03.27"]
[Round "1.16"]
[White "Tarlabasi, Emirhan"]
[Black "Soham Das"]
[Result "1/2-1/2"]
[ECO "D30"]
[WhiteElo "2301"]
[BlackElo "2385"]
[Annotator "NA"]
[PlyCount "100"]
[EventDate "2021.03.27"]
[EventType "team-tourn"]
[EventCountry "NET"]
[SourceTitle "playchess.com"]
[Source "ChessBase"]
[SourceQuality "1"]
[TimeControl "900+5"]

1. d4 {[%emt 0:00:00]} d5 {[%emt 0:00:07]} 2. c4 {[%emt 0:00:08]} c6 {[%emt 0:00:08]} 3. e3 {[%emt 0:00:07]} Nf6 {[%emt 0:00:02]} 4. Nf3 {[%emt 0:00:02]} e6 {[%emt 0:00:04]} 5. b3 {[%emt 0:00:09]} Ne4 {[%emt 0:00:14]} 6. Bd3 {[%emt 0:01:03]} Bb4+ {[%emt 0:01:45]} 7. Nbd2 {[%emt 0:01:07]} Nd7 {[%emt 0:01:02]} 8. a3 {[%emt 0:01:32]} Bc3 {[%emt 0:03:38]} 9. Ra2 {[%emt 0:01:15]} Ba5 {[%emt 0:00:21]} 10. Qc2 {[%emt 0:01:06]} f5 {[%emt 0:01:37]} 11. O-O {[%emt 0:01:01]} O-O {[%emt 0:00:52]} 12. Ne5 {[%emt 0:02:44]} Nxe5 {[%emt 0:01:00]} 13. dxe5 {[%emt 0:00:04]} c5 {[%emt 0:00:02]} 14. f3 {[%emt 0:02:15]} Nxd2 {[%emt 0:00:58]} 15. Bxd2 {[%emt 0:00:02]} Bxd2 {[%emt 0:00:02]} 16. Qxd2 {[%emt 0:00:02]} b6 {[%emt 0:00:11]} 17. b4 {[%emt 0:00:52]} Qc7 {[%emt 0:00:51]} 18. bxc5 {[%emt 0:01:48]} Qxc5 {[%emt 0:00:50]} 19. cxd5 {[%emt 0:01:07]} Qxd5 {[%emt 0:00:09]} 20. Rc2 {[%emt 0:00:10]} Rd8 {[%emt 0:00:11]} 21. Rc3 {[%emt 0:00:02]} Ba6 {[%emt 0:00:12]} 22. Rd1 {[%emt 0:00:01]} Qxe5 {[%emt 0:00:11]} 23. Qe1 {[%emt 0:00:02]} Rd5 {[%emt 0:00:48]} 24. f4 {[%emt 0:00:09]} Qd6 {[%emt 0:00:44]} 25. Bc2 {[%emt 0:00:02]} Rc8 {[%emt 0:00:19]} 26. Rxd5 {[%emt 0:00:04]} Qxd5 {[%emt 0:00:21]} 27. Bb3 {[%emt 0:00:03]} Qd6 {[%emt 0:00:15]} 28. Rxc8+ {[%emt 0:00:03]} Bxc8 {[%emt 0:00:01]} 29. Qc3 {[%emt 0:00:03]} Bd7 {[%emt 0:00:05]} 30. Qd4 {[%emt 0:00:14]} Qxd4 {[%emt 0:00:08]} 31. exd4 {[%emt 0:00:01]} Kf8 {[%emt 0:00:01]} 32. Kf2 {[%emt 0:00:02]} Ke7 {[%emt 0:00:02]} 33. Ke3 {[%emt 0:00:02]} Kd6 {[%emt 0:00:08]} 34. Kd3 {[%emt 0:00:03]} Bb5+ {[%emt 0:00:15]} 35. Kc3 {[%emt 0:00:02]} Bc6 {[%emt 0:00:03]} 36. g3 {[%emt 0:00:02]} Bd5 {[%emt 0:00:01]} 37. Ba4 {[%emt 0:00:04]} Ba2 {[%emt 0:00:12]} 38. Bd1 {[%emt 0:00:04]} h6 {[%emt 0:00:04]} 39. h4 {[%emt 0:00:03]} g6 {[%emt 0:00:05]} 40. Bf3 {[%emt 0:00:05]} Bd5 {[%emt 0:00:05]} 41. Bd1 {[%emt 0:00:01]} a6 {[%emt 0:00:11]} 42. Kd3 {[%emt 0:00:15]} Kc6 {[%emt 0:00:04]} 43. Kc3 {[%emt 0:00:03]} Kb5 {[%emt 0:00:02]} 44. Bc2 {[%emt 0:00:22]} Kc6 {[%emt 0:00:11]} 45. Ba4+ {[%emt 0:00:06]} b5 {[%emt 0:00:04]} 46. Bd1 {[%emt 0:00:02]} a5 {[%emt 0:00:02]} 47. Be2 {[%emt 0:00:09]} Be4 {[%emt 0:00:03]} 48. Bd1 {[%emt 0:00:06]} Kd6 {[%emt 0:00:06]} 49. Be2 {[%emt 0:00:02]} Bc6 {[%emt 0:00:03]} 50. Bd1 {[%emt 0:00:01]} Ke7 {[%emt 0:00:10]} 1/2-1/2

[Event "European Online Club-ch-E 2021"]
[Site "Online"]
[Date "2021.03.27"]
[Round "1.17"]
[White "Westerberg, Jonathan"]
[Black "Sirosh, Ilja"]
[Result "1/2-1/2"]
[ECO "B51"]
[WhiteElo "2534"]
[BlackElo "2400"]
[Annotator "ChessBase"]
[PlyCount "128"]
[EventDate "2021.03.27"]
[EventType "team-tourn"]
[EventCountry "NET"]
[SourceTitle "playchess.com"]
[Source "ChessBase"]
[SourceQuality "1"]
[TimeControl "900+5"]

1. e4 {[%emt 0:00:00]} c5 {[%emt 0:00:04]} 2. Nf3 {[%emt 0:00:03]} d6 {[%emt 0:00:02]} 3. Bb5+ {[%emt 0:00:03]} Nd7 {[%emt 0:00:03]} 4. d4 {[%emt 0:00:03]} cxd4 {[%emt 0:00:06]} 5. Qxd4 {[%emt 0:00:03]} a6 {[%emt 0:00:07]} 6. Bxd7+ {[%emt 0:00:02]} Bxd7 {[%emt 0:00:02]} 7. Nc3 {[%emt 0:00:01]} e5 {[%emt 0:00:19]} 8. Qd3 {[%emt 0:00:03]} Rc8 {[%emt 0:00:11]} 9. O-O {[%emt 0:00:24]} h6 {[%emt 0:00:28]} 10. Nd2 {[%emt 0:01:21]} Qc7 {[%emt 0:00:10]} 11. Re1 {[%emt 0:00:34]} Nf6 {[%emt 0:01:29]} 12. Nf1 {[%emt 0:00:09]} Be7 {[%emt 0:00:51]} 13. Ne3 {[%emt 0:00:36]} Be6 {[%emt 0:00:03]} 14. Bd2 {[%emt 0:00:31]} O-O {[%emt 0:00:05]} 15. Red1 {[%emt 0:00:07]} Rfd8 {[%emt 0:02:02]} 16. Be1 {[%emt 0:00:04]} b5 {[%emt 0:00:38]} 17. a3 {[%emt 0:01:01]} Qb7 {[%emt 0:01:44]} 18. f3 {[%emt 0:00:46]} d5 {[%emt 0:00:20]} 19. exd5 {[%emt 0:01:24]} Bc5 {[%emt 0:00:39]} 20. Bf2 {[%emt 0:00:13]} Bxe3 {[%emt 0:00:53]} 21. Qxe3 {[%emt 0:00:04]} Nxd5 {[%emt 0:00:12]} 22. Qe4 {[%emt 0:00:41]} Qa8 {[%emt 0:01:56]} 23. Qxe5 {[%emt 0:01:32]} Nxc3 {[%emt 0:00:05]} 24. Rxd8+ {[%emt 0:00:31]} Rxd8 {[%emt 0:00:03]} 25. Qxc3 {[%emt 0:00:01]} Qd5 {[%emt 0:00:15]} 26. b4 {[%emt 0:02:31]} Qd2 {[%emt 0:01:00]} 27. Qxd2 {[%emt 0:01:48]} Rxd2 {[%emt 0:00:02]} 28. c3 {[%emt 0:00:01]} Ra2 {[%emt 0:00:39]} 29. Rxa2 {[%emt 0:00:02]} Bxa2 {[%emt 0:00:00]} 30. Bc5 {[%emt 0:00:03]} f5 {[%emt 0:01:24]} 31. Kf2 {[%emt 0:00:07]} Kf7 {[%emt 0:00:28]} 32. Ke3 {[%emt 0:00:01]} g6 {[%emt 0:00:08]} 33. Kd4 {[%emt 0:00:07]} Ke6 {[%emt 0:00:04]} 34. Bf8 {[%emt 0:00:07]} h5 {[%emt 0:00:03]} 35. f4 {[%emt 0:00:39]} Bb3 {[%emt 0:00:36]} 36. Kc5 {[%emt 0:00:03]} Bc2 {[%emt 0:00:27]} 37. g3 {[%emt 0:01:21]} h4 {[%emt 0:00:10]} 38. gxh4 {[%emt 0:00:09]} Bd1 {[%emt 0:00:02]} 39. Bg7 {[%emt 0:00:10]} Bc2 {[%emt 0:00:01]} 40. Be5 {[%emt 0:00:15]} Bd1 {[%emt 0:00:03]} 41. Bd4 {[%emt 0:00:22]} Bc2 {[%emt 0:00:01]} 42. Kc6 {[%emt 0:00:04]} Bd3 {[%emt 0:00:25]} 43. Be5 {[%emt 0:00:02]} Be2 {[%emt 0:00:03]} 44. Kb6 {[%emt 0:00:02]} Kd5 {[%emt 0:00:02]} 45. Kxa6 {[%emt 0:00:01]} Kc4 {[%emt 0:00:01]} 46. Ka5 {[%emt 0:00:01]} Bd1 {[%emt 0:00:01]} 47. Kb6 {[%emt 0:00:02]} Bf3 {[%emt 0:00:17]} 48. Bd4 {[%emt 0:00:09]} Bd1 {[%emt 0:00:03]} 49. Kc6 {[%emt 0:00:02]} Bf3+ {[%emt 0:00:07]} 50. Kd6 {[%emt 0:00:01]} Bd1 {[%emt 0:00:02]} 51. Be5 {[%emt 0:00:10]} Bf3 {[%emt 0:00:03]} 52. Kc7 {[%emt 0:00:19]} Be2 {[%emt 0:00:05]} 53. Kb6 {[%emt 0:00:04]} Kb3 {[%emt 0:00:08]} 54. Kc5 {[%emt 0:00:08]} Kxa3 {[%emt 0:00:01]} 55. h5 {[%emt 0:00:10]} gxh5 {[%emt 0:00:04]} 56. Kd5 {[%emt 0:00:02]} h4 {[%emt 0:00:10]} 57. Ke6 {[%emt 0:00:10]} Bg4 {[%emt 0:00:01]} 58. Bf6 {[%emt 0:00:05]} h3 {[%emt 0:00:03]} 59. Kd5 {[%emt 0:00:02]} Kb3 {[%emt 0:00:01]} 60. Kc5 {[%emt 0:00:01]} Be2 {[%emt 0:00:02]} 61. Be5 {[%emt 0:00:02]} Bf1 {[%emt 0:00:02]} 62. Kd4 {[%emt 0:00:02]} Be2 {[%emt 0:00:04]} 63. Ke3 {[%emt 0:00:02]} Bg4 {[%emt 0:00:01]} 64. Kd3 {[%emt 0:00:02]} Bf3 {[%emt 0:00:02]} 1/2-1/2